fUSD/lending_fUSD_20250120
["ID","MTS","AMOUNT","RATE_DAILY","PERIOD"]
[349700446,1737383448017,-452.05444705,0.00020071,2]
[349700447,1737383448027,-701.67,0.00020071,2]
[349700448,1737383448039,-1177.66,0.00020071,2]
[349700449,1737383448050,-1051.8,0.00020071,2]
[349700450,1737383448060,-500.0,0.00020071,2]
[349700451,1737383448070,-1176.97,0.00020071,2]
[349700452,1737383448080,-1283.84,0.00020071,2]
[349700453,1737383448090,-500.0,0.00020071,2]
[349700454,1737383448100,-770.36,0.00020071,2]
[349700455,1737383448110,-1580.42,0.00020071,2]
[349700456,1737383448119,-183.02051158,0.00020071,2]
[349700457,1737383448129,-1060.52,0.00020071,2]
[349700458,1737383448139,-655.78,0.00020071,2]
[349700459,1737383448148,-724.7,0.00020071,2]
[349700460,1737383448158,-583.21,0.00020071,2]
[349700461,1737383448168,-1088.91,0.00020071,2]
[349700462,1737383448178,-532.33,0.00020071,2]
[349700463,1737383448188,-500.0,0.00020071,2]
[349700464,1737383448198,-719.7,0.00020071,2]
[349700465,1737383448208,-1333.48,0.00020071,2]
[349700466,1737383448218,-500.0,0.00020072,2]
[349700467,1737383448227,-500.0,0.00020072,2]
[349700468,1737383448241,-500.0,0.00020072,2]
[349700469,1737383448252,-500.0,0.00020072,2]
[349700470,1737383448261,-500.0,0.00020072,2]
[349700471,1737383448272,-500.0,0.00020072,2]
[349700472,1737383448282,-713.92,0.00020072,2]
[349700473,1737383448293,-1307.7,0.00020072,2]
[349700474,1737383448303,-500.0,0.00020072,2]
[349700475,1737383448314,-500.0,0.00020072,2]
[349700476,1737383448324,-500.0,0.00020072,2]
[349700477,1737383448334,-1000.0,0.00020072,2]
[349700478,1737383448343,-1361.29,0.00020072,2]
[349700479,1737383448353,-500.0,0.00020072,2]
[349700480,1737383448363,-1717.38,0.00020072,2]
[349700481,1737383448372,-1776.8,0.00020072,2]
[349700482,1737383448382,-500.0,0.00020072,2]
[349700483,1737383448393,-500.0,0.00020072,2]
[349700484,1737383448403,-500.0,0.00020072,2]
[349700485,1737383448414,-500.0,0.00020072,2]
[349700486,1737383448424,-500.0,0.00020072,2]
[349700487,1737383448434,-500.0,0.00020074,2]
[349700488,1737383448444,-473.92486827,0.00020109,2]
[349700489,1737383448454,-1328.13698462,0.00020121,2]
[349700490,1737383448464,-200.0,0.00020228,2]
[349700491,1737383448474,-473.92486827,0.00020247,2]
[349700492,1737383448486,-743.27,0.00020272,2]
[349700493,1737383448496,-967.55,0.00020272,2]
[349700494,1737383448507,-500.0,0.00020272,2]
[349700495,1737383448516,-500.0,0.00020272,2]
[349700496,1737383448526,-901.57,0.00020272,2]
[349700497,1737383448535,-500.0,0.00020272,2]
[349700498,1737383448545,-508.63,0.00020272,2]
[349700499,1737383448554,-500.0,0.00020272,2]
[349700500,1737383448563,-677.62,0.00020272,2]
[349700501,1737383448572,-589.89,0.00020272,2]
[349700502,1737383448582,-500.0,0.00020272,2]
[349700503,1737383448591,-500.0,0.00020272,2]
[349700504,1737383448602,-1303.79,0.00020272,2]
[349700505,1737383448612,-500.0,0.00020273,2]
[349700506,1737383448622,-500.0,0.00020273,2]
[349700507,1737383448632,-500.0,0.00020273,2]
[349700508,1737383448642,-1086.72,0.00020273,2]
[349700509,1737383448651,-500.0,0.00020273,2]
[349700510,1737383448660,-500.0,0.00020273,2]
[349700511,1737383448670,-500.0,0.00020273,2]
[349700512,1737383448680,-500.0,0.00020273,2]
[349700513,1737383448690,-500.0,0.00020273,2]
[349700514,1737383448699,-500.0,0.00020273,2]
[349700515,1737383448709,-500.0,0.00020273,2]
[349700516,1737383448718,-500.0,0.00020273,2]
[349700517,1737383448728,-500.0,0.00020273,2]
[349700518,1737383448741,-500.0,0.00020273,2]
[349700519,1737383448751,-500.0,0.00020273,2]
[349700520,1737383448761,-500.0,0.00020273,2]
[349700521,1737383448770,-500.0,0.00020273,2]
[349700522,1737383448780,-500.0,0.00020273,2]
[349700523,1737383448790,-500.0,0.00020273,2]
[349700524,1737383448799,-500.0,0.00020273,2]
[349700525,1737383448810,-500.0,0.00020273,2]
[349700526,1737383448819,-500.0,0.00020273,2]
[349700527,1737383448828,-500.0,0.00020273,2]
[349700528,1737383448841,-500.0,0.00020273,2]
[349700529,1737383448850,-500.0,0.00020273,2]
[349700530,1737383448859,-500.0,0.00020273,2]
[349700531,1737383448869,-545.72,0.00020273,2]
[349700532,1737383448880,-569.91,0.00020273,2]
[349700533,1737383448890,-500.0,0.00020273,2]
[349700534,1737383448899,-500.0,0.00020273,2]
[349700535,1737383448910,-500.0,0.00020273,2]
[349700536,1737383448920,-500.0,0.00020273,2]
[349700537,1737383448930,-626.47,0.00020273,2]
[349700538,1737383448940,-562.62,0.00020273,2]
[349700539,1737383448950,-523.99,0.00020273,2]
[349700540,1737383448959,-509.6,0.00020273,2]
[349700541,1737383448969,-632.4638,0.00020273,2]
[349700542,1737383448979,-500.0,0.00020273,2]
[349700543,1737383448992,-500.0,0.00020273,2]
[349700544,1737383449002,-563.13,0.00020273,2]
[349700545,1737383449011,-848.39,0.00020273,2]
[349700546,1737383449021,-500.0,0.00020273,2]
[349700547,1737383449030,-500.0,0.00020273,2]
[349700548,1737383449040,-530.03,0.00020273,2]
[349700549,1737383449050,-647.21,0.00020273,2]
[349700550,1737383449060,-500.0,0.00020273,2]
[349700551,1737383449070,-806.27,0.00020273,2]
[349700552,1737383449080,-875.35,0.00020273,2]
[349700553,1737383449089,-500.0,0.00020273,2]
[349700554,1737383449099,-950.29,0.00020273,2]
[349700555,1737383449110,-500.0,0.00020273,2]
[349700556,1737383449119,-586.02,0.00020273,2]
[349700557,1737383449129,-968.65,0.00020273,2]
[349700558,1737383449138,-1779.93,0.00020273,2]
[349700559,1737383449147,-500.0,0.00020273,2]
[349700560,1737383449157,-536.86,0.00020273,2]
[349700561,1737383449167,-500.0,0.00020273,2]
[349700562,1737383449176,-978.6,0.00020273,2]
[349700563,1737383449186,-1379.51,0.00020273,2]
[349700564,1737383449196,-1011.25,0.00020273,2]
[349700565,1737383449206,-500.0,0.00020273,2]
[349700566,1737383449215,-641.11,0.00020273,2]
[349700567,1737383449225,-883.6,0.00020273,2]
[349700568,1737383449238,-595.39,0.00020273,2]
[349700569,1737383449248,-962.47,0.00020273,2]
[349700570,1737383449258,-500.0,0.00020273,2]
[349700571,1737383449268,-500.0,0.00020273,2]
[349700572,1737383449277,-761.75,0.00020273,2]
[349700573,1737383449286,-389.35252604,0.00020273,2]
[349700574,1737383449296,-519.96,0.00020273,2]
[349700575,1737383449307,-500.0,0.00020273,2]
[349700576,1737383449316,-500.0,0.00020273,2]
[349700577,1737383449326,-500.0,0.00020273,2]
[349700578,1737383449336,-743.86,0.00020273,2]
[349700579,1737383449346,-500.0,0.00020273,2]
[349700580,1737383449356,-500.0,0.00020273,2]
[349700581,1737383449365,-500.0,0.00020273,2]
[349700582,1737383449375,-551.73,0.00020273,2]
[349700583,1737383449384,-500.0,0.00020273,2]
[349700584,1737383449394,-2346.85,0.00020273,2]
[349700585,1737383449405,-522.45,0.00020273,2]
[349700586,1737383449415,-500.0,0.00020273,2]
[349700587,1737383449424,-571.97,0.00020273,2]
[349700588,1737383449434,-500.0,0.00020273,2]
[349700589,1737383449444,-607.55,0.00020273,2]
[349700590,1737383449454,-500.0,0.00020273,2]
[349700591,1737383449465,-500.0,0.00020273,2]
[349700592,1737383449475,-500.0,0.00020273,2]
[349700593,1737383449487,-500.0,0.00020273,2]
[349700594,1737383449497,-500.0,0.00020273,2]
[349700595,1737383449507,-714.34,0.00020273,2]
[349700596,1737383449518,-881.4,0.00020273,2]
[349700597,1737383449528,-500.0,0.00020273,2]
[349700598,1737383449538,-500.0,0.00020273,2]
[349700599,1737383449548,-500.0,0.00020273,2]
[349700600,1737383449558,-662.69,0.00020273,2]
[349700601,1737383449568,-651.19,0.00020273,2]
[349700602,1737383449579,-500.0,0.00020273,2]
[349700603,1737383449589,-500.0,0.00020273,2]
[349700604,1737383449598,-522.32,0.00020273,2]
[349700605,1737383449608,-500.0,0.00020273,2]
[349700606,1737383449617,-500.0,0.00020273,2]
[349700607,1737383449627,-1372.41,0.00020273,2]
[349700608,1737383449636,-1728.81,0.00020273,2]
[349700609,1737383449645,-3023.58,0.00020273,2]
[349700610,1737383449654,-500.0,0.00020273,2]
[349700611,1737383449663,-548.66,0.00020273,2]
[349700612,1737383449672,-500.0,0.00020273,2]
[349700613,1737383449682,-500.0,0.00020273,2]
[349700614,1737383449691,-500.0,0.00020273,2]
[349700615,1737383449701,-2078.39,0.00020273,2]
[349700616,1737383449710,-550.04,0.00020273,2]
[349700617,1737383449719,-787.25,0.00020273,2]
[349700618,1737383449729,-500.0,0.00020273,2]
[349700619,1737383449741,-1835.65,0.00020273,2]
[349700620,1737383449751,-500.0,0.00020273,2]
[349700621,1737383449760,-500.0,0.00020273,2]
[349700622,1737383449772,-203.83175825,0.000203,2]
[349700623,1737383449782,-1328.13698462,0.00020344,2]
[349700624,1737383449791,-500.0,0.00020345,2]
[349700625,1737383449801,-514.39,0.00020345,2]
[349700626,1737383449810,-961.9,0.00020345,2]
[349700627,1737383449819,-543.051879,0.00020345,2]
[349700628,1737383449829,-500.0,0.00020345,2]
[349700629,1737383449839,-500.0,0.00020345,2]
[349700630,1737383449849,-800.76,0.00020345,2]
[349700631,1737383449858,-1376.43,0.00020345,2]
[349700632,1737383449868,-500.0,0.00020345,2]
[349700633,1737383449877,-587.87,0.00020345,2]
[349700634,1737383449887,-500.0,0.00020345,2]
[349700635,1737383449897,-500.0,0.00020345,2]
[349700636,1737383449906,-500.0,0.00020345,2]
[349700637,1737383449916,-701.67,0.00020345,2]
[349700638,1737383449925,-1177.66,0.00020345,2]
[349700639,1737383449934,-1051.8,0.00020345,2]
[349700640,1737383449943,-500.0,0.00020345,2]
[349700641,1737383449953,-1176.97,0.00020345,2]
[349700642,1737383449963,-1283.84,0.00020345,2]
[349700643,1737383449973,-500.0,0.00020345,2]
[349700644,1737383449984,-770.36,0.00020345,2]
[349700645,1737383449993,-1580.42,0.00020345,2]
[349700646,1737383450002,-1060.52,0.00020345,2]
[349700647,1737383450012,-655.78,0.00020345,2]
[349700648,1737383450021,-724.7,0.00020345,2]
[349700649,1737383450030,-583.21,0.00020345,2]
[349700650,1737383450040,-1088.91,0.00020345,2]
[349700651,1737383450050,-532.33,0.00020345,2]
[349700652,1737383450062,-500.0,0.00020345,2]
[349700653,1737383450071,-719.7,0.00020345,2]
[349700654,1737383450081,-1333.48,0.00020345,2]
[349700655,1737383450091,-500.0,0.00020346,2]
[349700656,1737383450101,-500.0,0.00020346,2]
[349700657,1737383450110,-500.0,0.00020346,2]
[349700658,1737383450119,-500.0,0.00020346,2]
[349700659,1737383450128,-500.0,0.00020346,2]
[349700660,1737383450137,-500.0,0.00020346,2]
[349700661,1737383450146,-713.92,0.00020346,2]
[349700662,1737383450156,-1307.7,0.00020346,2]
[349700663,1737383450165,-500.0,0.00020346,2]
[349700664,1737383450175,-500.0,0.00020346,2]
[349700665,1737383450184,-500.0,0.00020346,2]
[349700666,1737383450193,-1000.0,0.00020346,2]
[349700667,1737383450202,-1361.29,0.00020346,2]
[349700668,1737383450212,-500.0,0.00020346,2]
[349700669,1737383450221,-1717.38,0.00020346,2]
[349700670,1737383450230,-1776.8,0.00020346,2]
[349700671,1737383450241,-500.0,0.00020346,2]
[349700672,1737383450251,-500.0,0.00020346,2]
[349700673,1737383450260,-500.0,0.00020346,2]
[349700674,1737383450269,-500.0,0.00020346,2]
[349700675,1737383450279,-500.0,0.00020348,2]
[349700676,1737383450288,-473.92486827,0.00020384,2]
[349700677,1737383450298,-500.0,0.00020399,2]
[349700678,1737383450311,-473.92486827,0.00020522,2]
[349700679,1737383450321,-743.27,0.00020546,2]
[349700680,1737383450330,-967.55,0.00020546,2]
[349700681,1737383450339,-500.0,0.00020546,2]
[349700682,1737383450349,-500.0,0.00020546,2]
[349700683,1737383450359,-901.57,0.00020546,2]
[349700684,1737383450370,-500.0,0.00020546,2]
[349700685,1737383450379,-508.63,0.00020546,2]
[349700686,1737383450388,-500.0,0.00020546,2]
[349700687,1737383450397,-677.62,0.00020546,2]
[349700688,1737383450408,-589.89,0.00020546,2]
[349700689,1737383450417,-500.0,0.00020546,2]
[349700690,1737383450426,-500.0,0.00020546,2]
[349700691,1737383450436,-1303.79,0.00020546,2]
[349700692,1737383450445,-500.0,0.00020547,2]
[349700693,1737383450454,-599.83167303,0.00020547,2]
[349700694,1737383450463,-500.0,0.00020547,2]
[349700695,1737383450473,-1086.72,0.00020547,2]
[349700696,1737383450482,-500.0,0.00020547,2]
[349700697,1737383450491,-500.0,0.00020547,2]
[349700698,1737383450501,-500.0,0.00020547,2]
[349700699,1737383450510,-500.0,0.00020547,2]
[349700700,1737383450519,-500.0,0.00020547,2]
[349700701,1737383450529,-500.0,0.00020547,2]
[349700702,1737383450710,-500.0,0.00020547,2]
[349700703,1737383450722,-500.0,0.00020547,2]
[349700704,1737383450735,-509.33385434,0.00020547,2]
[349700705,1737383450746,-500.0,0.00020547,2]
[349700706,1737383450756,-500.0,0.00020547,2]
[349700707,1737383450767,-500.0,0.00020547,2]
[349700708,1737383450776,-500.0,0.00020547,2]
[349700709,1737383450786,-500.0,0.00020547,2]
[349700710,1737383450795,-386.64,0.00020547,2]
[349700711,1737383450804,-500.0,0.00020547,2]
[349700712,1737383450814,-500.0,0.00020547,2]
[349700713,1737383450825,-500.0,0.00020547,2]
[349700714,1737383450837,-500.0,0.00020547,2]
[349700715,1737383450846,-500.0,0.00020547,2]
[349700716,1737383450855,-500.0,0.00020547,2]
[349700717,1737383450864,-500.0,0.00020547,2]
[349700718,1737383450875,-545.72,0.00020547,2]
[349700719,1737383450886,-569.91,0.00020547,2]
[349700720,1737383450903,-500.0,0.00020547,2]
[349700721,1737383450920,-500.0,0.00020547,2]
[349700722,1737383450930,-500.0,0.00020547,2]
[349700723,1737383450940,-500.0,0.00020547,2]
[349700724,1737383450949,-626.47,0.00020547,2]
[349700725,1737383450959,-562.62,0.00020547,2]
[349700726,1737383450968,-523.99,0.00020547,2]
[349700727,1737383450978,-509.6,0.00020547,2]
[349700728,1737383450990,-500.0,0.00020547,2]
[349700729,1737383450999,-500.0,0.00020547,2]
[349700730,1737383451009,-563.13,0.00020547,2]
[349700731,1737383451018,-848.39,0.00020547,2]
[349700732,1737383451028,-500.0,0.00020547,2]
[349700733,1737383451037,-466.76681273,0.00020547,2]
[349700734,1737383451046,-530.03,0.00020547,2]
[349700735,1737383451056,-647.21,0.00020547,2]
[349700736,1737383451065,-500.0,0.00020547,2]
[349700737,1737383451074,-806.27,0.00020547,2]
[349700738,1737383451083,-875.35,0.00020547,2]
[349700739,1737383451092,-318.21022933,0.00020547,2]
[349700740,1737383451102,-950.29,0.00020547,2]
[349700741,1737383451111,-500.0,0.00020547,2]
[349700742,1737383451121,-586.02,0.00020547,2]
[349700743,1737383451133,-968.65,0.00020547,2]
[349700744,1737383451143,-1779.93,0.00020547,2]
[349700745,1737383451152,-500.0,0.00020547,2]
[349700746,1737383451161,-536.86,0.00020547,2]
[349700747,1737383451170,-500.0,0.00020547,2]
[349700748,1737383451179,-978.6,0.00020547,2]
[349700749,1737383451188,-1379.51,0.00020547,2]
[349700750,1737383451198,-1011.25,0.00020547,2]
[349700751,1737383451207,-500.0,0.00020547,2]
[349700752,1737383451217,-641.11,0.00020547,2]
[349700753,1737383451226,-883.6,0.00020547,2]
[349700754,1737383451238,-595.39,0.00020547,2]
[349700755,1737383451247,-962.47,0.00020547,2]
[349700756,1737383451256,-500.0,0.00020547,2]
[349700757,1737383451266,-500.0,0.00020547,2]
[349700758,1737383451275,-761.75,0.00020547,2]
[349700759,1737383451284,-519.96,0.00020547,2]
[349700760,1737383451294,-500.0,0.00020547,2]
[349700761,1737383451304,-500.0,0.00020547,2]
[349700762,1737383451314,-500.0,0.00020547,2]
[349700763,1737383451323,-743.86,0.00020547,2]
[349700764,1737383451335,-500.0,0.00020547,2]
[349700765,1737383451344,-500.0,0.00020547,2]
[349700766,1737383451355,-500.0,0.00020547,2]
[349700767,1737383451364,-551.73,0.00020547,2]
[349700768,1737383451374,-500.0,0.00020547,2]
[349700769,1737383451384,-2346.85,0.00020547,2]
[349700770,1737383451393,-522.45,0.00020547,2]
[349700771,1737383451403,-500.0,0.00020547,2]
[349700772,1737383451413,-571.97,0.00020547,2]
[349700773,1737383451423,-500.0,0.00020547,2]
[349700774,1737383451432,-607.55,0.00020547,2]
[349700775,1737383451441,-500.0,0.00020547,2]
[349700776,1737383451450,-500.0,0.00020547,2]
[349700777,1737383451459,-500.0,0.00020547,2]
[349700778,1737383451469,-500.0,0.00020547,2]
[349700779,1737383451478,-500.0,0.00020547,2]
[349700780,1737383451490,-714.34,0.00020547,2]
[349700781,1737383451500,-881.4,0.00020547,2]
[349700782,1737383451509,-500.0,0.00020547,2]
[349700783,1737383451519,-500.0,0.00020547,2]
[349700784,1737383451529,-500.0,0.00020547,2]
[349700785,1737383451539,-662.69,0.00020547,2]
[349700786,1737383451548,-651.19,0.00020547,2]
[349700787,1737383451558,-500.0,0.00020547,2]
[349700788,1737383451567,-500.0,0.00020547,2]
[349700789,1737383451577,-522.32,0.00020547,2]
[349700790,1737383451587,-500.0,0.00020547,2]
[349700791,1737383451596,-500.0,0.00020547,2]
[349700792,1737383451606,-1372.41,0.00020547,2]
[349700793,1737383451615,-1728.81,0.00020547,2]
[349700794,1737383451624,-3023.58,0.00020547,2]
[349700795,1737383451634,-500.0,0.00020547,2]
[349700796,1737383451644,-548.66,0.00020547,2]
[349700797,1737383451654,-500.0,0.00020547,2]
[349700798,1737383451663,-500.0,0.00020547,2]
[349700799,1737383451674,-2078.39,0.00020547,2]
[349700800,1737383451683,-550.04,0.00020547,2]
[349700801,1737383451693,-787.25,0.00020547,2]
[349700802,1737383451702,-500.0,0.00020547,2]
[349700803,1737383451711,-1835.65,0.00020547,2]
[349700804,1737383451722,-500.0,0.00020547,2]
[349700805,1737383451734,-500.0,0.00020547,2]
[349700806,1737383451743,-1328.13698462,0.00020566,2]
[349700807,1737383451753,-2216.0,0.000206,2]
[349700808,1737383451762,-500.0,0.00020619,2]
[349700809,1737383451771,-514.39,0.00020619,2]
[349700810,1737383451780,-961.9,0.00020619,2]
[349700811,1737383451789,-543.051879,0.00020619,2]
[349700812,1737383451798,-500.0,0.00020619,2]
[349700813,1737383451808,-500.0,0.00020619,2]
[349700814,1737383451817,-800.76,0.00020619,2]
[349700815,1737383451827,-1376.43,0.00020619,2]
[349700816,1737383451840,-500.0,0.00020619,2]
[349700817,1737383451850,-587.87,0.00020619,2]
[349700818,1737383451860,-500.0,0.00020619,2]
[349700819,1737383451869,-500.0,0.00020619,2]
[349700820,1737383451880,-500.0,0.00020619,2]
[349700821,1737383451890,-701.67,0.00020619,2]
[349700822,1737383451904,-1177.66,0.00020619,2]
[349700823,1737383451915,-1051.8,0.00020619,2]
[349700824,1737383451924,-500.0,0.00020619,2]
[349700825,1737383451934,-1176.97,0.00020619,2]
[349700826,1737383451943,-1283.84,0.00020619,2]
[349700827,1737383451952,-500.0,0.00020619,2]
[349700828,1737383451962,-770.36,0.00020619,2]
[349700829,1737383451971,-1580.42,0.00020619,2]
[349700830,1737383451980,-1060.52,0.00020619,2]
[349700831,1737383451992,-655.78,0.00020619,2]
[349700832,1737383452002,-724.7,0.00020619,2]
[349700833,1737383452012,-583.21,0.00020619,2]
[349700834,1737383452022,-1088.91,0.00020619,2]
[349700835,1737383452031,-532.33,0.00020619,2]
[349700836,1737383452041,-500.0,0.00020619,2]
[349700837,1737383452049,-719.7,0.00020619,2]
[349700838,1737383452058,-1333.48,0.00020619,2]
[349700839,1737383452068,-500.0,0.0002062,2]
[349700840,1737383452078,-549.92,0.0002062,2]
[349700841,1737383452087,-500.0,0.0002062,2]
[349700842,1737383452096,-500.0,0.0002062,2]
[349700843,1737383452106,-500.0,0.0002062,2]
[349700844,1737383452115,-500.0,0.0002062,2]
[349700845,1737383452125,-713.92,0.0002062,2]
[349700846,1737383452134,-1307.7,0.0002062,2]
[349700847,1737383452143,-500.0,0.0002062,2]
[349700848,1737383452153,-500.0,0.0002062,2]
[349700849,1737383452162,-500.0,0.0002062,2]
[349700850,1737383452172,-1000.0,0.0002062,2]
[349700851,1737383452181,-1361.29,0.0002062,2]
[349700852,1737383452190,-500.0,0.0002062,2]
[349700853,1737383452199,-1717.38,0.0002062,2]
[349700854,1737383452208,-1776.8,0.0002062,2]
[349700855,1737383452216,-500.0,0.0002062,2]
[349700856,1737383452225,-500.0,0.0002062,2]
[349700857,1737383452237,-500.0,0.0002062,2]
[349700858,1737383452246,-500.0,0.0002062,2]
[349700859,1737383452256,-500.0,0.00020622,2]
[349700860,1737383452265,-687.0390581,0.00020629,2]
[349700861,1737383452275,-473.92486827,0.0002066,2]
[349700862,1737383452285,-203.83175825,0.000207,2]
[349700863,1737383452294,-300.0,0.000207,7]
[349700864,1737383452305,-1328.13698462,0.00020788,2]
[349700865,1737383452315,-473.92486827,0.00020798,2]
[349700866,1737383452325,-600.0,0.000208,7]
[349700867,1737383452334,-743.27,0.0002082,2]
[349700868,1737383452344,-967.55,0.0002082,2]
[349700869,1737383452353,-500.0,0.0002082,2]
[349700870,1737383452362,-500.0,0.0002082,2]
[349700871,1737383452371,-901.57,0.0002082,2]
[349700872,1737383452380,-500.0,0.0002082,2]
[349700873,1737383452389,-508.63,0.0002082,2]
[349700874,1737383452399,-500.0,0.0002082,2]
[349700875,1737383452408,-677.62,0.0002082,2]
[349700876,1737383452417,-589.89,0.0002082,2]
[349700877,1737383452426,-500.0,0.0002082,2]
[349700878,1737383452435,-500.0,0.0002082,2]
[349700879,1737383452444,-1303.79,0.0002082,2]
[349700880,1737383452454,-500.0,0.00020821,2]
[349700881,1737383452463,-500.0,0.00020821,2]
[349700882,1737383452472,-1086.72,0.00020821,2]
[349700883,1737383452481,-500.0,0.00020821,2]
[349700884,1737383452492,-500.0,0.00020821,2]
[349700885,1737383452501,-500.0,0.00020821,2]
[349700886,1737383452510,-500.0,0.00020821,2]
[349700887,1737383452521,-500.0,0.00020821,2]
[349700888,1737383452530,-500.0,0.00020821,2]
[349700889,1737383452539,-500.0,0.00020821,2]
[349700890,1737383452548,-500.0,0.00020821,2]
[349700891,1737383452557,-295.07,0.00020821,2]
[349700892,1737383452566,-500.0,0.00020821,2]
[349700893,1737383452575,-500.0,0.00020821,2]
[349700894,1737383452585,-500.0,0.00020821,2]
[349700895,1737383452594,-500.0,0.00020821,2]
[349700896,1737383452604,-500.0,0.00020821,2]
[349700897,1737383452614,-445.88911787,0.00020821,2]
[349700898,1737383452623,-500.0,0.00020821,2]
[349700899,1737383452632,-500.0,0.00020821,2]
[349700900,1737383452641,-500.0,0.00020821,2]
[349700901,1737383452650,-500.0,0.00020821,2]
[349700902,1737383452660,-500.0,0.00020821,2]
[349700903,1737383452670,-545.72,0.00020821,2]
[349700904,1737383452679,-569.91,0.00020821,2]
[349700905,1737383452688,-500.0,0.00020821,2]
[349700906,1737383452697,-500.0,0.00020821,2]
[349700907,1737383452707,-500.0,0.00020821,2]
[349700908,1737383452716,-500.0,0.00020821,2]
[349700909,1737383452725,-626.47,0.00020821,2]
[349700910,1737383452738,-562.62,0.00020821,2]
[349700911,1737383452748,-523.99,0.00020821,2]
[349700912,1737383452757,-509.6,0.00020821,2]
[349700913,1737383452766,-500.0,0.00020821,2]
[349700914,1737383452775,-500.0,0.00020821,2]
[349700915,1737383452784,-563.13,0.00020821,2]
[349700916,1737383452794,-848.39,0.00020821,2]
[349700917,1737383452803,-500.0,0.00020821,2]
[349700918,1737383452812,-530.03,0.00020821,2]
[349700919,1737383452822,-647.21,0.00020821,2]
[349700920,1737383452832,-500.0,0.00020821,2]
[349700921,1737383452842,-806.27,0.00020821,2]
[349700922,1737383452851,-875.35,0.00020821,2]
[349700923,1737383452861,-950.29,0.00020821,2]
[349700924,1737383452870,-500.0,0.00020821,2]
[349700925,1737383452880,-586.02,0.00020821,2]
[349700926,1737383452889,-968.65,0.00020821,2]
[349700927,1737383452898,-1779.93,0.00020821,2]
[349700928,1737383452908,-487.94365971,0.00020821,2]
[349700929,1737383452917,-536.86,0.00020821,2]
[349700930,1737383452926,-500.0,0.00020821,2]
[349700931,1737383452938,-978.6,0.00020821,2]
[349700932,1737383452947,-1379.51,0.00020821,2]
[349700933,1737383452956,-1011.25,0.00020821,2]
[349700934,1737383452965,-310.282092,0.00020821,2]
[349700935,1737383452975,-641.11,0.00020821,2]
[349700936,1737383452986,-883.6,0.00020821,2]
[349700937,1737383452995,-595.39,0.00020821,2]
[349700938,1737383453004,-962.47,0.00020821,2]
[349700939,1737383453013,-500.0,0.00020821,2]
[349700940,1737383453023,-500.0,0.00020821,2]
[349700941,1737383453032,-761.75,0.00020821,2]
[349700942,1737383453041,-519.96,0.00020821,2]
[349700943,1737383453050,-500.0,0.00020821,2]
[349700944,1737383453058,-500.0,0.00020821,2]
[349700945,1737383453067,-500.0,0.00020821,2]